Cogmind - Beta 12 @@@ ROGUE MODE // 2023.06.15 @ 15:30:41 Player: Mr Goldstein Result: Destroyed by as-78759 with Assembled Rifle Performance ------------- Evolutions (0) 0 Regions Visited (2) 400 Robots Destroyed (32) 160 Value Destroyed (654) 654 Prototype IDs (1) 20 Alien Tech Used (0) 0 Bonus (0) 0 TOTAL SCORE: 1234 Bonus ------- None Cogmind --------- Core Integrity 0/250 Matter 169/300 Energy 250/250 System Corruption 5% Temperature Cool (6) Movement Treading (240) Ox1 Location -10/Mines Parts ------- > --- POWER (1) -------- Ion Engine > --- PROPULSION (2) --- Light Treads > --- UTILITY (2) ------ Large Storage Unit Light Armor Plating > --- WEAPON (2) ------- Grenade Launcher Grenade Launcher > --- INVENTORY (15) --- Ion Engine Light Treads Light Treads Heat Sink Light Armor Plating Light Armor Plating Light Armor Plating Light Armor Plating Hacking Suite Assault Rifle Assault Rifle Assault Rifle Light Assault Rifle Light Assault Rifle Mining Claw Peak State ------------ > --- POWER ------------ Ion Engine > --- PROPULSION ------- Light Treads Light Treads > --- UTILITY ---------- Heat Sink Small Storage Unit > --- WEAPON ----------- Advanced Beam Cannon Advanced Beam Cannon > --- INVENTORY -------- Ion Engine Wheel Compact Wheel Advanced Beam Cannon Advanced Beam Cannon Assault Rifle Light Assault Rifle Grenade Launcher [Rating: 12] Favorites ----------- Power Ion Engine Engine Ion Engine Propulsion Light Treads Treads Light Treads Wheel Compact Wheel Utility Large Storage Unit Device Heat Sink Storage Large Storage Unit Processor Targeting Computer Protection Light Armor Plating Weapon Advanced Beam Cannon Energy Cannon Advanced Beam Cannon Ballistic Gun Assault Rifle Launcher Grenade Launcher Slashing Weapon Mining Claw Build | -11 -10 -10 ------- Run | Jun Mat Min Slots Evolved . | . . . Power . | . . . Propulsion . | . . . Utility . | . . . Weapon . | . . . Parts Attached 27 | 7 19 1 Power 3 | 2 1 . Engine 3 | 2 1 . Core . | . . . Reactor . | . . . Propulsion 7 | 2 5 . Treads 5 | . 5 . Leg . | . . . Wheel 2 | 2 . . Hover . | . . . Flight . | . . . Utility 5 | 1 4 . Device 1 | . 1 . Storage 2 | 1 1 . Processor 1 | . 1 . Hackware . | . . . Protection 1 | . 1 . Artifact . | . . . Weapon 12 | 2 9 1 Energy Gun . | . . . Energy Cannon 2 | . 2 . Ballistic Gun 6 | 2 4 . Ballistic Cannon . | . . . Launcher 3 | . 2 1 Special Weapon . | . . . Impact Weapon . | . . . Slashing Weapon 1 | . 1 . Piercing Weapon . | . . . Special Melee Weapon . | . . . Unidentified Prototypes 1 | . 1 . Parts Lost 3 | . 2 1 Power 1 | . 1 . Propulsion 1 | . . 1 Utility . | . . . Weapon 1 | . 1 . Highest Loss Streak 1 | . 1 1 To Critical Strikes . | . . . Average Slot Usage (%) 99 | . 99 95 Engine 14 | . 14 14 Treads 27 | . 27 23 Device 4 | . 4 . Storage 14 | . 14 14 Processor 1 | . 1 . Protection 8 | . 8 14 Energy Cannon 8 | . 8 . Ballistic Gun 14 | . 14 4 Launcher 3 | . 2 23 Slashing Weapon 2 | . 2 . Naked Turns . | . . . Heaviest Build 34 | 13 34 34 Greatest Support 40 | 26 40 40 Greatest Overweight (x) 1 | . . 1 Average Overweight (x) . | . . . Largest Inventory Capacity 15 | 8 15 15 Average Capacity 13 | 6 13 15 Most Carried 15 | 3 15 15 Average Carried 10 | 1 10 15 Final Capacity 15 | 8 15 15 Final Carried 15 | 3 15 15 Class Distribution -------------------- 100% | Mutant Dominant Class ---------------- Mutant | -10/Materials Mutant | -10/Mines Resources | -11 -10 -10 ----------- Run | Jun Mat Min Matter Collected 830 | 224 582 24 Remotely . | . . . Salvage Created 911 | . 870 41 Parts 62 | . 55 7 Haulers Intercepted 2 | . 2 . Recyclers Shooed 4 | . 3 1 Parts Field Recycled . | . . . Retrieved Matter . | . . . Parts Self-Destructed . | . . . Prevented . | . . . Kills | -11 -10 -10 ------- Run | Jun Mat Min Combat Hostiles Destroyed 28 | . 16 12 Guns 5 | . 5 . Cannons 8 | . 8 . AOE 15 | . 3 12 Classes Destroyed 9 | . 8 1 Worker 4 | . 4 . Tunneler 1 | . 1 . Hauler 2 | . 2 . Recycler 2 | . 2 . Operator 2 | . 2 . Watcher 2 | . 2 . Swarmer 9 | . 6 3 Grunt 10 | . 10 . Assembled 9 | . . 9 Best Kill Streak 12 | . 3 12 Combat Bots Only 12 | . 3 12 Max Kills in Single Turn 3 | . 2 3 Gunslinging . | . . . Exploded 3 | . 2 3 Melee . | . . . Uniques/NPCs Destroyed . | . . . Combat | -11 -10 -10 -------- Run | Jun Mat Min Damage Taken 1192 | . 813 379 Core 261 | . 176 85 Absorbed by Shields . | . . . Core Remaining (%) 100 | 100 . . Volleys Fired 125 | . 117 8 Largest 2 | . 2 2 Hottest 136 | . 136 60 Shots Fired 226 | . 212 14 Gun 133 | . 133 . Cannon 72 | . 72 . Launcher 21 | . 7 14 Special . | . . . Kinetic 133 | . 133 . Thermal 72 | . 72 . Explosive 21 | . 7 14 Electromagnetic . | . . . Robot Hit Streak 15 | . 15 4 Robot Miss Streak 6 | . 6 1 Penetration Max . | . . . Secondary Targets . | . . . Shots Hit Robots 131 | . 127 4 Core Hits 71 | . 45 26 Critical Kills 1 | . 1 . Critical Parts Destroyed . | . . . Critical Strikes 1 | . 1 . Meltdown 1 | . 1 . Melee Attacks 15 | . 15 . Impact . | . . . Slashing 15 | . 15 . Piercing . | . . . Sneak Attacks 8 | . 8 . Combat Hostiles . | . . . Follow-up Attacks . | . . . Damage Inflicted 3108 | . 2243 865 Guns 783 | . 783 . Cannons 839 | . 839 . Explosions 1070 | . 205 865 Melee 416 | . 416 . Ramming . | . . . Kinetic 783 | . 783 . Thermal 839 | . 839 . Explosive 1070 | . 205 865 Electromagnetic . | . . . Impact . | . . . Slashing 416 | . 416 . Piercing . | . . . Highest Corruption 5 | . 1 5 Average Corruption 1 | . 1 2 Corruption Purged . | . . . Corruption Blocked . | . . . Effects 13 | . 12 1 Message Errors 5 | . 4 1 Matter Fused 2 | . 2 . Heat Flow Errors 1 | . 1 . Data Loss (minor) 1 | . 1 . Data Loss (major) 1 | . 1 . Misfires 1 | . 1 . Alerts 1 | . 1 . Weapon Failures 1 | . 1 . Overload Shots . | . . . Overflow Damage 62 | . 52 10 Projectiles 14 | . 14 . Explosions 11 | . 1 10 Melee 37 | . 37 . Knockbacks . | . . . Impact . | . . . Kinetic . | . . . Secondary . | . . . Self-Inflicted Damage 130 | . 32 98 Shots 4 | . 1 3 Rammed . | . . . Targets Rammed . | . . . Kicked . | . . . Crushed . | . . . Highest Temperature 337 | . 337 65 Average Temperature 67 | . 70 31 Received Heat Transfer 323 | . 303 20 Effects 2 | . 2 . Energy Bleed 1 | . 1 . Interference 1 | . 1 . Siege Activations . | . . . Robots Corrupted . | . . . Combat Hostiles . | . . . Parts Fried . | . . . Impact Corruptions . | . . . Robots Melted 1 | . 1 . Combat Hostiles . | . . . Parts Melted 4 | . 4 . Heat Transferred 1517 | . 1517 . Parts Sabotaged . | . . . Parts Stolen . | . . . Parts Stripped . | . . . Power Chain Reactions . | . . . Missiles Intercepted . | . . . Alert | -11 -10 -10 ------- Run | Jun Mat Min Peak Influence 199 | . 199 187 Initial 55 | . . 55 Average 75 | . 75 162 Maximum Alert Level . | . . . Low Security (%) 100 | 100 100 100 Level 1 . | . . . Level 2 . | . . . Level 3 . | . . . Level 4 . | . . . Level 5 . | . . . High Security . | . . . Max Security . | . . . Squads Dispatched 6 | . 6 . Investigation 4 | . 4 . Extermination . | . . . Reinforcement 2 | . 2 . Assault . | . . . Garrison . | . . . Intercept . | . . . Searches Triggered . | . . . Construction Impeded . | . . . Haulers Reinforced . | . . . Active Scanning Responses . | . . . Cargo Convoy Interrupts . | . . . Stealth | -11 -10 -10 --------- Run | Jun Mat Min Distress Signals . | . . . Communications Jammed . | . . . Distress Signals . | . . . Times Spotted 48 | . 37 11 Peak Tracking Total 7 | . 4 7 Tactical Retreats 1 | . . 1 Traps | -11 -10 -10 ------- Run | Jun Mat Min Traps Triggered 1 | . 1 . Indirectly . | . . . Trap Hack Attempts . | . . . Triggered . | . . . Disarmed . | . . . Reprogrammed . | . . . Reused . | . . . Traps Extracted . | . . . Installed . | . . . Triggered . | . . . Machines | -11 -10 -10 ---------- Run | Jun Mat Min Machines Disabled 12 | . 10 2 Max in Single Turn 1 | . 1 1 Machines Repaired . | . . . Machines Sabotaged . | . . . Overloaded Fab Kills . | . . . Hacking | -11 -10 -10 --------- Run | Jun Mat Min Machines Accessed 6 | . 6 . Terminals 4 | . 4 . Fabricators . | . . . Repair Stations . | . . . Recycling Units 2 | . 2 . Scanalyzers . | . . . Garrison Access . | . . . Total Hacks 15 | . 15 . Successful 6 | . 6 . Failed 9 | . 9 . Catastrophic 1 | . 1 . Database Lockouts . | . . . Manual 13 | . 13 . Terminals 11 | . 11 . Fabricators . | . . . Repair Stations . | . . . Recycling Units 4 | . 4 . Scanalyzers . | . . . Garrison Access . | . . . Terminal Hacks 4 | . 4 . Robot Analysis 3 | . 3 . Alert Level 1 | . 1 . Fabricator Hacks . | . . . Repair Station Hacks . | . . . Recycling Unit Hacks . | . . . Scanalyzer . | . . . Garrison Access Hacks . | . . . Unauthorized Hacks 2 | . 2 . Terminals . | . . . Fabricators . | . . . Repair Stations . | . . . Recycling Units 2 | . 2 . Reject 1 | . 1 . Tunnel 1 | . 1 . Scanalyzers . | . . . Garrison Access . | . . . Data Cores Recovered 1 | . 1 . Used 1 | . 1 . Hacking Detections 4 | . 4 . Full Trace Events 3 | . 3 . Feedback Events 1 | . 1 . Corruption 1 | . 1 . Feedback Blocked . | . . . Robot Schematics Acquired . | . . . Robots Built . | . . . Authchips . | . . . Time . | . . . Total Robot Build Rating . | . . . Part Schematics Acquired . | . . . Parts Built . | . . . Authchips . | . . . Time . | . . . Total Part Build Rating . | . . . Parts Repaired . | . . . Time . | . . . Parts Recycled . | . . . Recycled Matter . | . . . Retrieved Matter . | . . . Retrieved Components . | . . . Parts Scanalyzed . | . . . Part Schematics Acquired . | . . . Parts Damaged . | . . . Bothacking | -11 -10 -10 ------------ Run | Jun Mat Min Used RIF Installer . | . . . Robots Hacked . | . . . Non-combat . | . . . Combat . | . . . Robot Hacks Applied . | . . . Relay Couplers Released . | . . . Fabnet Peak Effective % . | . . . Robots Rewired . | . . . Allies Hacked . | . . . Hacks Repelled . | . . . Allies | -11 -10 -10 -------- Run | Jun Mat Min Total Allies . | . . . Largest Group . | . . . Highest-Rated Group . | . . . Highest-Rated Ally . | . . . Total Orders . | . . . Ally Attacks . | . . . Total Damage . | . . . Kills . | . . . Allies Corrupted . | . . . Allies Melted . | . . . Intel | -11 -10 -10 ------- Run | Jun Mat Min Robot Analysis Total 3 | . 3 . Derelict Logs Recovered . | . . . Drone Launches . | . . . Drone Recoveries . | . . . Exploration | -11 -10 -10 ------------- Run | Jun Mat Min Turns Passed 2386 | 65 2284 37 Spaces Moved 967 | 59 900 8 Core 4 | 4 . . Treads 891 | . 883 8 Legs . | . . . Wheels 72 | 55 17 . Hover . | . . . Flight . | . . . Fastest Speed 50 | 50 90 160 Average Speed 154 | 90 158 180 Slowest Speed 240 | 100 160 240 Overloaded Moves . | . . . Propulsion Burnouts . | . . . Robots Hopped . | . . . Cave-ins Triggered . | . . . Exploration Rate (%) 36 | 4 99 7 Regions Visited 2 Branch Regions 1 Pre-discovered Areas 1 | . 1 . Known Exits Taken . | . . . Unknown Exits Taken 2 | 1 1 . Scrap Searched . | . . . Spaces Dug 28 | . 6 22 Terrain Destroyed 69 | . 13 56 Melee . | . . . Projectile . | . . . AOE 69 | . 13 56 Terrain Rammed . | . . . Walls Destroyed . | . . . Machines Disabled . | . . . Actions | -11 -10 -10 --------- Run | Jun Mat Min Total 1612 | 67 1528 17 Wait 445 | . 445 . Move 965 | 58 899 8 Hop . | . . . Pick Up 20 | 2 18 . Fast Attach 13 | 6 7 . Attach 3 | . 3 . Detach 4 | . 4 . Swap 11 | 1 9 1 Drop 11 | . 11 . Fire 125 | . 117 8 Melee 15 | . 15 . Ram . | . . . Kick . | . . . Crush . | . . . Escape Stasis . | . . . Rewire . | . . . Trap . | . . . Miscellaneous . | . . . Route ------- -11/Junkyard -10/Materials (discovered 4 exits: [*Mat x3] / [*Min]) -10/Mines History --------- Turn | Location | Event 10 | -11/Junkyard | Discovered new exit (range 15) 66 | -11/Junkyard | Entered Materials 327 | -10/Materials | Build established: Mutant 480 | -10/Materials | Discovered new exit (range 8) 543 | -10/Materials | Core integrity fell below 50% 619 | -10/Materials | Discovered new exit (range 9) 1471 | -10/Materials | Discovered new exit (range 16) 2216 | -10/Materials | Discovered new exit (range 11) 2350 | -10/Materials | Entered Mines 2351 | -10/Mines | Assembled infested the area 2377 | -10/Mines | Core integrity fell below 20% 2387 | -10/Mines | Destroyed by as-78759 with Assembled Rifle Last Messages --------------- 02366_ as-12638 destroyed. 02369_ U-05 Engineer lays Concrete. 02372_ Terminal disabled. 02372_ as-20136 destroyed. 02372_ as-03524 destroyed. 02372_ U-05 Engineer lays Concrete. 02375_ as-35312 destroyed. 02375_ U-05 Engineer lays Concrete. 02375_ Lgt. Treads destroyed. 02375_ System corrupted by crushing effect (+4). 02375_ R-06 Scavenger collects Flight Unit. 02376_ U-05 Engineer lays Concrete. 02378_ 1CVDDFUGAZ/MRASEXA XORWZTZU 02378_ U-05 Engineer lays Concrete. 02378_ as-06198 destroyed. 02378_ Destroyed Asb. Hover Unit. 02378_ Destroyed Welding Torch. 02385_ U-05 Engineer destroyed. 02385_ as-71380 destroyed. 02385_ as-34528 destroyed. Map ----- +----------------------------------------------------+ | ??????????????????????????????????????????????? | | ??????????????????????????????????????????????? | | ??????????????????????????????????????????????? | | ??????????????????????????????????????????????? | | ??????????????????????????????????????????????? | | ??????????????????????????????????????????????? | | ??????????????????????????????????????????????? | | ??????????????????????????????????????????????? | | ??????????????????????????????????????????????? | | ??????????????????????????????????????????????? | | ??????????????????????????????????????????????? | | ??????????????????????????????????????????????? | | ??????????????????????????????????????????????? | | ??????????????????????????????????????????????? | | ??????????????????????????????????????????????? | | ??????????????????????????????????????????????? | | ??????????????????????????????????????????????? | | ??????????????????????????????????????????????? | | ??????????????????????????????????????????????? | | ??????????????????????????????????????????????? | | ??????????????????????????????????????????????? | | ??????????????????????????????????????????????? | | ???????????????????#########??????????????????? | | ???????????????##??# #??????????????????? | | ??????????????# # #??????????????????? | | ??????????????# @ #??????????????????? | | ??????????????# a #####??????????????? | | ??????????????# #????????????? | | ?????????????# #######????????????? | | ????????????# #??????????????????? | | ????????????# "" #??????????????????? | | ????????????## #??????????????????? | | ?????????????# ######??????????????????? | | ???????????? a #???????????????????????? | | ??????????? ## ???????????????????????? | | ?????????????# a #???????????????????????? | | ?????????????# #???????????????????????? | | ??????????????# #### #???????????????????????? | | ???????????????????# ???????????????????????? | | ???????????????????# ???????????????????????? | | ???????????????????# ???????????????????????? | | ???????????????????? ???????????????????????? | | ???????????????????? ??????????????????????? | | ????????????????????? ????????????????????????? | | ??????????????????????????????????????????????? | | ??????????????????????????????????????????????? | | ??????????????????????????????????????????????? | | ??????????????????????????????????????????????? | | ??????????????????????????????????????????????? | | ??????????????????????????????????????????????? | +----------------------------------------------------+ Best States ------------- Heat Dissipation 35 Energy Generation 10 Energy Capacity 250 Matter Stores 300 Matter Capacity 300 Sight Range 16 Terrain Scan Density 10 Armor Coverage 150 Evasion (%) 42 Targeting Accuracy 5 Recoil Reduction 2 Item Schematics ----------------- None Robot Schematics ------------------ None Fabricated ------------ Nothing Alien Tech Used ----------------- None Achievements -------------- None Challenges ------------ None Game ------ Seed FortressImprovedTorch Manual? 0 Play Time 00:12:29 Cumulative 298.0 hours Start 2023.06.15 @ 15:18:53 End 2023.06.15 @ 15:30:41 Sessions 1 Manual Loads 0 Difficulty Rogue Special Mode None Game No. 857 Rogue 857 Adventurer 0 Explorer 0 Win Type - Total 22 Types 8/0/10/2/0/0/2/0/0 Lore% 92 Gallery% 89 Achievement% 82 Wizard Run 0 Options --------- ASCII 0 Keyboard 0 Movement Mouse Keybinds 0 Fullscreen 1 Font 16/SmallcapsGlow Map View 75x55 Tactical HUD 1 Map Filters NONE Filters NONE Steam 1 RUN: 6b140453-26fb-4bb8-97da-369bace88db2